[Event "FIDE Womens World Cup 2021"]
[Site "Sochi"]
[Date "2021.07.13"]
[Round "1.2"]
[White "Ordaz Valdes, Lisandra Teresa"]
[Black "Mamedjarova, Turkan"]
[Result "1-0"]
[ECO "D06"]
[WhiteElo "2369"]
[BlackElo "2309"]
[Annotator "NA"]
[PlyCount "41"]
[EventDate "2021.07.12"]
[EventType "k.o."]
[EventCountry "RUS"]
[SourceTitle "playchess.com"]
[Source "ChessBase"]
[SourceQuality "1"]
[TimeControl "40/5400+30:1800+30"]

1. d4 {[%emt 0:00:05]} d5 {[%emt 0:00:14]} 2. c4 {[%emt 0:00:10]} c5 {[%emt 0:00:18]} 3. cxd5 {[%emt 0:03:41]} Qxd5 {[%emt 0:00:38]} 4. Nf3 {[%emt 0:00:20]} cxd4 {[%emt 0:00:20]} 5. Nc3 {[%emt 0:00:12]} Qa5 {[%emt 0:00:24]} 6. Nxd4 {[%emt 0:00:20]} e5 {[%emt 0:00:34]} 7. Ndb5 {[%emt 0:09:09]} Bd7 {[%emt 0:13:54]} 8. e4 {[%emt 0:08:22]} Nf6 {[%emt 0:28:15]} 9. Bd2 {[%emt 0:09:51]} Na6 {[%emt 0:01:18]} 10. Rc1 {[%emt 0:13:36]} Bc6 {[%emt 0:05:22]} 11. Bc4 {[%emt 0:05:57]} Be7 {[%emt 0:04:18]} 12. O-O {[%emt 0:03:17]} O-O {[%emt 0:04:08]} 13. Qe2 {[%emt 0:01:12]} Qd8 {[%emt 0:15:15]} 14. Rfd1 {[%emt 0:04:13]} Nd7 {[%emt 0:00:40]} 15. Qg4 {[%emt 0:03:51]} Kh8 {[%emt 0:04:35]} 16. Be3 {[%emt 0:01:46]} Bc5 {[%emt 0:02:07]} 17. Bxc5 {[%emt 0:03:10]} Naxc5 {[%emt 0:00:29]} 18. Nd6 {[%emt 0:03:43]} Qf6 {[%emt 0:02:07]} 19. b4 {[%emt 0:00:17]} b5 {[%emt 0:05:03]} 20. Bxb5 {[%emt 0:01:18]} Bxb5 {[%emt 0:00:25]} 21. Ndxb5 1-0

[Event "FIDE Womens World Cup 2021"]
[Site "Sochi"]
[Date "2021.07.13"]
[Round "1.2"]
[White "Yildiz Kadioglu, Betul Cemre"]
[Black "Alinasab, Mobina"]
[Result "1/2-1/2"]
[ECO "A40"]
[WhiteElo "2362"]
[BlackElo "2317"]
[Annotator "NA"]
[PlyCount "236"]
[EventDate "2021.07.12"]
[EventType "k.o."]
[EventCountry "RUS"]
[SourceTitle "playchess.com"]
[Source "ChessBase"]
[SourceQuality "1"]
[TimeControl "40/5400+30:1800+30"]

1. d4 {[%emt 0:00:03]} e6 {[%emt 0:00:15]} 2. c4 {[%emt 0:00:34]} b6 {[%emt 0:00:13]} 3. Nc3 {[%emt 0:02:56]} Bb7 {[%emt 0:02:53]} 4. a3 {[%emt 0:09:33]} Nf6 {[%emt 0:04:14]} 5. Bf4 {[%emt 0:01:40]} a6 {[%emt 0:04:39]} 6. e3 {[%emt 0:01:37]} d6 {[%emt 0:07:40]} 7. Nf3 {[%emt 0:00:35]} Nbd7 {[%emt 0:00:10]} 8. Be2 {[%emt 0:02:51]} g6 {[%emt 0:03:41]} 9. h3 {[%emt 0:04:02]} Bg7 {[%emt 0:00:14]} 10. Bh2 {[%emt 0:01:51]} O-O {[%emt 0:02:33]} 11. O-O {[%emt 0:00:51]} Qe7 {[%emt 0:03:28]} 12. Ne1 {[%emt 0:09:35]} e5 {[%emt 0:02:48]} 13. d5 {[%emt 0:06:32]} Ne8 {[%emt 0:04:17]} 14. e4 {[%emt 0:11:54]} f5 {[%emt 0:01:23]} 15. exf5 {[%emt 0:04:19]} gxf5 {[%emt 0:07:22]} 16. f4 {[%emt 0:00:35]} Kh8 {[%emt 0:05:46]} 17. Nc2 {[%emt 0:02:56]} Nc5 {[%emt 0:03:50]} 18. Ne3 {[%emt 0:09:58]} Bh6 {[%emt 0:11:32]} 19. Qc2 {[%emt 0:03:35]} Ng7 {[%emt 0:00:55]} 20. Bd3 {[%emt 0:04:42]} Nxd3 {[%emt 0:08:58]} 21. Qxd3 {[%emt 0:00:04]} e4 {[%emt 0:02:30]} 22. Qd4 {[%emt 0:01:54]} c5 {[%emt 0:13:40]} 23. dxc6 {[%emt 0:02:04]} Bxc6 {[%emt 0:00:05]} 24. Qxb6 {[%emt 0:02:41]} Rfc8 {[%emt 0:01:12]} 25. Qd4 {[%emt 0:01:11]} Kg8 {[%emt 0:00:29]} 26. Ncd5 {[%emt 0:01:59]} Qa7 {[%emt 0:01:18]} 27. Qxa7 {[%emt 0:02:38]} Rxa7 {[%emt 0:00:01]} 28. Rad1 {[%emt 0:00:47]} Kf7 {[%emt 0:02:55]} 29. Nc3 {[%emt 0:01:45]} Ke6 {[%emt 0:00:45]} 30. Ne2 {[%emt 0:00:53]} Ba4 {[%emt 0:01:01]} 31. b3 {[%emt 0:01:12]} Bd7 {[%emt 0:00:17]} 32. Nd4+ {[%emt 0:00:23]} Kf7 {[%emt 0:00:53]} 33. g4 {[%emt 0:04:45]} fxg4 {[%emt 0:00:10]} 34. hxg4 {[%emt 0:00:05]} Ne8 {[%emt 0:00:12]} 35. Ndf5 {[%emt 0:01:47]} Bf8 {[%emt 0:00:14]} 36. Ng3 {[%emt 0:01:49]} Nf6 {[%emt 0:03:27]} 37. g5 {[%emt 0:00:51]} Ng4 {[%emt 0:00:02]} 38. Nef5 {[%emt 0:01:18]} d5 {[%emt 0:02:40]} 39. Rxd5 {[%emt 0:00:15]} Bc5+ {[%emt 0:00:01]} 40. Kg2 {[%emt 0:00:39]} Bxa3 {[%emt 0:01:04]} 41. Bg1 {[%emt 0:08:29]} e3 {[%emt 0:06:51]} 42. Nd6+ {[%emt 0:09:26]} Bxd6 {[%emt 0:01:37]} 43. Rxd6 {[%emt 0:00:02]} Rb7 {[%emt 0:05:09]} 44. Rd3 {[%emt 0:05:50]} h5 {[%emt 0:02:40]} 45. gxh6 {[%emt 0:03:07]} Bc6+ {[%emt 0:01:32]} 46. Kh3 {[%emt 0:00:35]} Nxh6 {[%emt 0:00:07]} 47. Rd6 {[%emt 0:04:04]} Ng8 {[%emt 0:00:01]} 48. Bxe3 {[%emt 0:00:48]} Nf6 {[%emt 0:00:40]} 49. Nf5 {[%emt 0:02:01]} Rh8+ {[%emt 0:15:51]} 50. Kg3 {[%emt 0:00:10]} Ne4+ {[%emt 0:00:12]} 51. Kg4 {[%emt 0:00:10]} Bd7 {[%emt 0:00:08]} 52. Rxd7+ {[%emt 0:01:29]} Rxd7 {[%emt 0:00:01]} 53. Ra1 {[%emt 0:00:36]} Nf6+ {[%emt 0:00:52]} 54. Kf3 {[%emt 0:00:14]} Rh3+ {[%emt 0:01:21]} 55. Kg2 {[%emt 0:00:16]} Rh5 {[%emt 0:00:19]} 56. Ng3 {[%emt 0:00:34]} Rh4 {[%emt 0:00:41]} 57. Nf5 {[%emt 0:00:50]} Rh5 {[%emt 0:00:33]} 58. Ng3 {[%emt 0:00:02]} Rh4 {[%emt 0:00:05]} 59. Nf5 {[%emt 0:00:15]} Rh8 {[%emt 0:00:49]} 60. Rxa6 {[%emt 0:00:23]} Rd3 {[%emt 0:00:38]} 61. Rxf6+ {[%emt 0:01:24]} Kxf6 {[%emt 0:00:01]} 62. Bd4+ {[%emt 0:00:08]} Kxf5 {[%emt 0:00:30]} 63. Bxh8 {[%emt 0:00:02]} Kxf4 {[%emt 0:00:49]} 64. c5 {[%emt 0:00:52]} Rxb3 {[%emt 0:00:17]} 65. Bd4 {[%emt 0:00:22]} Rd3 {[%emt 0:00:30]} 66. Bg1 {[%emt 0:00:36]} Rc3 {[%emt 0:00:26]} 67. c6 {[%emt 0:00:42]} Rxc6 {[%emt 0:00:42]} 68. Bh2+ {[%emt 0:00:08]} Kg4 {[%emt 0:00:18]} 69. Bg1 {[%emt 0:01:11]} Rc2+ {[%emt 0:00:34]} 70. Kh1 {[%emt 0:00:14]} Kg3 {[%emt 0:00:32]} 71. Bb6 {[%emt 0:00:46]} Rc6 {[%emt 0:00:28]} 72. Bd4 {[%emt 0:00:30]} Re6 {[%emt 0:00:40]} 73. Ba7 {[%emt 0:00:22]} Rh6+ {[%emt 0:00:30]} 74. Kg1 {[%emt 0:00:01]} Rh8 {[%emt 0:00:14]} 75. Bd4 {[%emt 0:01:00]} Re8 {[%emt 0:00:54]} 76. Kh1 {[%emt 0:00:13]} Kf3 {[%emt 0:00:34]} 77. Bg1 {[%emt 0:00:35]} Rg8 {[%emt 0:00:32]} 78. Bd4 {[%emt 0:00:48]} Rg5 {[%emt 0:00:27]} 79. Bg1 {[%emt 0:00:23]} Ke2 {[%emt 0:00:21]} 80. Bh2 {[%emt 0:00:34]} Kf2 {[%emt 0:00:32]} 81. Bc7 {[%emt 0:00:33]} Rb5 {[%emt 0:00:31]} 82. Bd6 {[%emt 0:00:26]} Rd5 {[%emt 0:00:39]} 83. Bc7 {[%emt 0:00:23]} Rd1+ {[%emt 0:00:31]} 84. Kh2 {[%emt 0:00:02]} Rd7 {[%emt 0:00:09]} 85. Bb6+ {[%emt 0:00:35]} Kf3 {[%emt 0:00:05]} 86. Bc5 {[%emt 0:00:44]} Rc7 {[%emt 0:00:33]} 87. Bd4 {[%emt 0:00:48]} Rc4 {[%emt 0:01:08]} 88. Bb6 {[%emt 0:00:23]} Rh4+ {[%emt 0:00:35]} 89. Kg1 {[%emt 0:00:02]} Rh8 {[%emt 0:00:31]} 90. Bc5 {[%emt 0:00:26]} Rh6 {[%emt 0:00:28]} 91. Bd4 {[%emt 0:00:43]} Re6 {[%emt 0:00:31]} 92. Ba7 {[%emt 0:00:52]} Rh6 {[%emt 0:00:31]} 93. Bd4 {[%emt 0:00:26]} Kg3 {[%emt 0:00:30]} 94. Be5+ {[%emt 0:00:15]} Kh3 {[%emt 0:00:03]} 95. Kf2 {[%emt 0:00:53]} Rh5 {[%emt 0:00:21]} 96. Bd4 {[%emt 0:00:07]} Rf5+ {[%emt 0:00:13]} 97. Ke3 {[%emt 0:00:09]} Kg3 {[%emt 0:00:05]} 98. Ke4 {[%emt 0:00:12]} Rf8 {[%emt 0:00:05]} 99. Be5+ {[%emt 0:00:15]} Kg4 {[%emt 0:00:05]} 100. Bd6 {[%emt 0:00:21]} Re8+ {[%emt 0:00:16]} 101. Be5 {[%emt 0:00:10]} Re7 {[%emt 0:00:37]} 102. Kd5 {[%emt 0:00:13]} Kf5 {[%emt 0:00:04]} 103. Bd6 {[%emt 0:00:16]} Rd7 {[%emt 0:00:05]} 104. Kc6 {[%emt 0:00:15]} Ke6 {[%emt 0:00:02]} 105. Bc5 {[%emt 0:00:39]} Rd2 {[%emt 0:00:18]} 106. Bb6 {[%emt 0:00:58]} Rc2+ {[%emt 0:00:05]} 107. Kb7 {[%emt 0:00:25]} Kd7 {[%emt 0:00:07]} 108. Bd4 {[%emt 0:00:34]} Rc4 {[%emt 0:00:10]} 109. Bf2 {[%emt 0:00:46]} Rb4+ {[%emt 0:00:13]} 110. Ka8 {[%emt 0:00:10]} Kc7 {[%emt 0:00:23]} 111. Bg3+ {[%emt 0:00:43]} Kb6 {[%emt 0:00:38]} 112. Bf2+ {[%emt 0:00:25]} Ka6 {[%emt 0:00:03]} 113. Ba7 {[%emt 0:01:46]} Rb7 {[%emt 0:00:13]} 114. Bb8 {[%emt 0:01:00]} Kb6 {[%emt 0:00:05]} 115. Bg3 {[%emt 0:00:31]} Ra7+ {[%emt 0:00:03]} 116. Kb8 {[%emt 0:00:03]} Rf7 {[%emt 0:00:06]} 117. Ka8 {[%emt 0:00:32]} Rf3 {[%emt 0:00:06]} 118. Be5 {[%emt 0:00:29]} Rd3 {[%emt 0:00:27]} 1/2-1/2

[Event "FIDE Womens World Cup 2021"]
[Site "Sochi"]
[Date "2021.07.13"]
[Round "1.2"]
[White "Peng, Zhaoqin"]
[Black "Afonasieva, Anna"]
[Result "1-0"]
[ECO "A04"]
[WhiteElo "2358"]
[BlackElo "2243"]
[Annotator "NA"]
[PlyCount "127"]
[EventDate "2021.07.12"]
[EventType "k.o."]
[EventCountry "RUS"]
[SourceTitle "playchess.com"]
[Source "ChessBase"]
[SourceQuality "1"]
[TimeControl "40/5400+30:1800+30"]

1. Nf3 {[%emt 0:00:05]} f5 {[%emt 0:01:52]} 2. d4 {[%emt 0:00:40]} Nf6 {[%emt 0:00:09]} 3. e3 {[%emt 0:03:07]} g6 {[%emt 0:00:14]} 4. Bd3 {[%emt 0:02:16]} Bg7 {[%emt 0:00:12]} 5. Nbd2 {[%emt 0:01:14]} d6 {[%emt 0:03:17]} 6. e4 {[%emt 0:01:30]} fxe4 {[%emt 0:03:13]} 7. Nxe4 {[%emt 0:00:05]} O-O {[%emt 0:01:39]} 8. O-O {[%emt 0:03:05]} Nxe4 {[%emt 0:25:07]} 9. Bxe4 {[%emt 0:00:05]} d5 {[%emt 0:00:48]} 10. Bd3 {[%emt 0:00:05]} c5 {[%emt 0:13:14]} 11. dxc5 {[%emt 0:01:10]} e5 {[%emt 0:04:45]} 12. Be2 {[%emt 0:00:10]} Nc6 {[%emt 0:01:14]} 13. c3 {[%emt 0:01:36]} Be6 {[%emt 0:04:53]} 14. Bg5 {[%emt 0:03:05]} Qd7 {[%emt 0:02:09]} 15. Qd2 {[%emt 0:04:26]} Bg4 {[%emt 0:08:12]} 16. Rad1 {[%emt 0:17:54]} d4 {[%emt 0:02:51]} 17. Ne1 {[%emt 0:10:30]} Bxe2 {[%emt 0:09:07]} 18. Qxe2 {[%emt 0:00:04]} Qd5 {[%emt 0:01:52]} 19. Qd2 {[%emt 0:10:03]} Qxc5 {[%emt 0:01:28]} 20. cxd4 {[%emt 0:04:13]} exd4 {[%emt 0:01:39]} 21. Bh6 {[%emt 0:04:34]} Bxh6 {[%emt 0:03:53]} 22. Qxh6 {[%emt 0:00:02]} Rf5 {[%emt 0:01:49]} 23. Nd3 {[%emt 0:00:57]} Qd5 {[%emt 0:00:22]} 24. b3 {[%emt 0:00:37]} Raf8 {[%emt 0:00:46]} 25. Rfe1 {[%emt 0:03:10]} Rg5 {[%emt 0:03:24]} 26. Qh3 {[%emt 0:00:31]} Kg7 {[%emt 0:02:04]} 27. f4 {[%emt 0:04:10]} Rgf5 {[%emt 0:00:28]} 28. Qg4 {[%emt 0:02:17]} Qd6 {[%emt 0:00:43]} 29. Qe2 {[%emt 0:01:49]} R8f7 {[%emt 0:01:19]} 30. Qb2 {[%emt 0:02:07]} Rd5 {[%emt 0:01:02]} 31. g3 {[%emt 0:05:09]} Re7 {[%emt 0:01:36]} 32. b4 {[%emt 0:03:52]} Rc7 {[%emt 0:00:32]} 33. Nc5 {[%emt 0:01:58]} Rxc5 {[%emt 0:00:10]} 34. bxc5 {[%emt 0:00:11]} Qxc5 {[%emt 0:00:02]} 35. Rc1 {[%emt 0:01:57]} Qd6 {[%emt 0:00:48]} 36. Re4 {[%emt 0:01:53]} Rd7 {[%emt 0:00:27]} 37. Rd1 {[%emt 0:03:56]} Qd5 {[%emt 0:00:29]} 38. Re8 {[%emt 0:02:57]} b5 {[%emt 0:00:48]} 39. Qb3 {[%emt 0:00:31]} a5 {[%emt 0:00:35]} 40. Rc8 {[%emt 0:01:04]} Ne7 {[%emt 0:00:35]} 41. Qxd5 {[%emt 0:31:01]} Rxd5 {[%emt 0:02:59]} 42. Rc7 {[%emt 0:00:00]} Kf6 {[%emt 0:00:06]} 43. g4 {[%emt 0:00:00]} Rd6 {[%emt 0:02:18]} 44. g5+ {[%emt 0:00:00]} Kf7 {[%emt 0:00:07]} 45. Kf2 {[%emt 0:00:00]} b4 {[%emt 0:01:49]} 46. Ra7 {[%emt 0:00:00]} d3 {[%emt 0:02:03]} 47. Re1 {[%emt 0:00:00]} Re6 {[%emt 0:00:17]} 48. Rxa5 {[%emt 0:00:00]} d2 {[%emt 0:02:06]} 49. Rd1 {[%emt 0:00:00]} Rd6 {[%emt 0:00:08]} 50. Re5 {[%emt 0:00:00]} Nf5 {[%emt 0:01:04]} 51. Re2 {[%emt 0:00:00]} Rd4 {[%emt 0:00:36]} 52. Rdxd2 {[%emt 0:00:00]} Rxf4+ {[%emt 0:00:12]} 53. Ke1 {[%emt 0:00:00]} Rg4 {[%emt 0:00:42]} 54. Rd7+ {[%emt 0:00:00]} Kf8 {[%emt 0:00:05]} 55. Rc2 {[%emt 0:00:00]} Re4+ {[%emt 0:00:23]} 56. Kd2 {[%emt 0:00:00]} Ne7 {[%emt 0:00:58]} 57. Kd3 {[%emt 0:00:00]} Re1 {[%emt 0:00:45]} 58. Rcc7 {[%emt 0:00:00]} Rd1+ {[%emt 0:00:56]} 59. Kc2 {[%emt 0:00:03]} Re1 {[%emt 0:00:31]} 60. Kb3 {[%emt 0:01:05]} Rb1+ {[%emt 0:00:58]} 61. Ka4 {[%emt 0:00:09]} Re1 {[%emt 0:00:34]} 62. Rxe7 {[%emt 0:00:04]} Rxe7 {[%emt 0:00:05]} 63. Rxe7 {[%emt 0:00:13]} Kxe7 {[%emt 0:00:03]} 64. Kxb4 {[%emt 0:00:08]} 1-0

[Event "FIDE Womens World Cup 2021"]
[Site "Sochi"]
[Date "2021.07.13"]
[Round "1.2"]
[White "Gaponenko, Inna"]
[Black "Majdan, Joanna"]
[Result "1/2-1/2"]
[ECO "B48"]
[WhiteElo "2357"]
[BlackElo "2339"]
[Annotator "NA"]
[PlyCount "57"]
[EventDate "2021.07.12"]
[EventType "k.o."]
[EventCountry "RUS"]
[SourceTitle "playchess.com"]
[Source "ChessBase"]
[SourceQuality "1"]
[TimeControl "40/5400+30:1800+30"]

1. e4 {[%emt 0:00:03]} c5 {[%emt 0:00:05]} 2. Nf3 {[%emt 0:00:08]} Nc6 {[%emt 0:00:05]} 3. d4 {[%emt 0:00:55]} cxd4 {[%emt 0:00:05]} 4. Nxd4 {[%emt 0:00:04]} e6 {[%emt 0:00:04]} 5. Nc3 {[%emt 0:01:10]} Qc7 {[%emt 0:00:04]} 6. Be3 {[%emt 0:07:15]} a6 {[%emt 0:00:52]} 7. Qd2 {[%emt 0:10:53]} Nf6 {[%emt 0:00:56]} 8. O-O-O {[%emt 0:01:53]} Bb4 {[%emt 0:09:10]} 9. f3 {[%emt 0:00:24]} Na5 {[%emt 0:06:43]} 10. a3 {[%emt 0:35:10]} Be7 {[%emt 0:05:03]} 11. e5 {[%emt 0:27:01]} Nd5 {[%emt 0:04:42]} 12. Nxd5 {[%emt 0:01:14]} exd5 {[%emt 0:00:05]} 13. Bg5 {[%emt 0:02:49]} Bf8 {[%emt 0:14:26]} 14. Kb1 {[%emt 0:00:14]} d6 {[%emt 0:12:00]} 15. exd6 {[%emt 0:00:20]} Bxd6 {[%emt 0:00:04]} 16. Re1+ {[%emt 0:00:14]} Kf8 {[%emt 0:00:20]} 17. Qe3 {[%emt 0:00:12]} Bd7 {[%emt 0:02:26]} 18. Be7+ {[%emt 0:00:10]} Kg8 {[%emt 0:01:08]} 19. Bxd6 {[%emt 0:02:24]} Qxd6 {[%emt 0:00:04]} 20. Qe7 {[%emt 0:01:41]} Qxe7 {[%emt 0:00:06]} 21. Rxe7 {[%emt 0:00:02]} Rd8 {[%emt 0:00:13]} 22. Bd3 {[%emt 0:00:19]} g6 {[%emt 0:00:58]} 23. Rhe1 {[%emt 0:01:56]} Nc4 {[%emt 0:07:11]} 24. Nb3 {[%emt 0:03:52]} Bc8 {[%emt 0:05:55]} 25. Nc5 {[%emt 0:01:05]} Nd6 {[%emt 0:03:09]} 26. R7e5 {[%emt 0:00:38]} Nc4 {[%emt 0:04:59]} 27. Re7 {[%emt 0:00:01]} Nd6 {[%emt 0:15:34]} 28. R7e5 {[%emt 0:00:05]} Nc4 {[%emt 0:00:08]} 29. Re7 1/2-1/2

[Event "FIDE Womens World Cup 2021"]
[Site "Sochi"]
[Date "2021.07.13"]
[Round "1.2"]
[White "Schneider, Jana"]
[Black "Aulia, Medina Warda"]
[Result "0-1"]
[ECO "C70"]
[WhiteElo "2353"]
[BlackElo "2360"]
[Annotator "NA"]
[PlyCount "88"]
[EventDate "2021.07.12"]
[EventType "k.o."]
[EventCountry "RUS"]
[SourceTitle "playchess.com"]
[Source "ChessBase"]
[SourceQuality "1"]
[TimeControl "40/5400+30:1800+30"]

1. e4 {[%emt 0:00:04]} e5 {[%emt 0:00:04]} 2. Nf3 {[%emt 0:00:11]} Nc6 {[%emt 0:00:05]} 3. Bb5 {[%emt 0:01:55]} a6 {[%emt 0:00:06]} 4. Ba4 {[%emt 0:00:06]} b5 {[%emt 0:00:08]} 5. Bb3 {[%emt 0:00:15]} Na5 {[%emt 0:00:38]} 6. O-O {[%emt 0:10:44]} d6 {[%emt 0:00:05]} 7. d4 {[%emt 0:01:31]} exd4 {[%emt 0:00:40]} 8. Nxd4 {[%emt 0:09:07]} c5 {[%emt 0:01:09]} 9. Bd5 {[%emt 0:00:34]} Ra7 {[%emt 0:07:06]} 10. b4 {[%emt 0:04:29]} cxd4 {[%emt 0:10:08]} 11. Qxd4 {[%emt 0:04:15]} Rc7 {[%emt 0:01:33]} 12. bxa5 {[%emt 0:00:09]} Be7 {[%emt 0:02:38]} 13. Qb6 {[%emt 0:09:06]} Nf6 {[%emt 0:05:38]} 14. Bc6+ {[%emt 0:05:26]} Nd7 {[%emt 0:00:58]} 15. a4 {[%emt 0:01:03]} O-O {[%emt 0:00:26]} 16. Bxd7 {[%emt 0:00:16]} Bxd7 {[%emt 0:00:14]} 17. Qxa6 {[%emt 0:02:27]} bxa4 {[%emt 0:03:10]} 18. Be3 {[%emt 0:01:36]} Bf6 {[%emt 0:08:49]} 19. Ra2 {[%emt 0:04:14]} Rc6 {[%emt 0:06:53]} 20. Qb7 {[%emt 0:07:32]} Rc7 {[%emt 0:02:04]} 21. Qb4 {[%emt 0:02:58]} Qc8 {[%emt 0:00:08]} 22. Qxd6 {[%emt 0:02:35]} Bb5 {[%emt 0:00:42]} 23. Rc1 {[%emt 0:01:24]} Re8 {[%emt 0:11:11]} 24. f3 {[%emt 0:07:18]} Be7 {[%emt 0:07:41]} 25. Qb6 {[%emt 0:02:13]} Rb7 {[%emt 0:01:46]} 26. Qd4 {[%emt 0:00:08]} Rd8 {[%emt 0:00:34]} 27. Qe5 {[%emt 0:01:24]} Qc4 {[%emt 0:00:40]} 28. Bb6 {[%emt 0:10:41]} Bf6 {[%emt 0:03:55]} 29. Qg3 {[%emt 0:05:24]} Rxb6 {[%emt 0:07:39]} 30. axb6 {[%emt 0:00:29]} Qxa2 {[%emt 0:00:03]} 31. b7 {[%emt 0:02:28]} Qb2 {[%emt 0:00:05]} 32. Re1 {[%emt 0:01:13]} Bc6 {[%emt 0:00:46]} 33. e5 {[%emt 0:00:50]} Be7 {[%emt 0:00:26]} 34. e6 {[%emt 0:00:28]} Qxb7 {[%emt 0:01:31]} 35. exf7+ {[%emt 0:00:21]} Kxf7 {[%emt 0:00:05]} 36. Qh3 {[%emt 0:01:11]} h6 {[%emt 0:02:31]} 37. Qe6+ {[%emt 0:02:09]} Kf8 {[%emt 0:00:05]} 38. Qf5+ {[%emt 0:00:25]} Bf6 {[%emt 0:00:12]} 39. Nc3 {[%emt 0:00:28]} Qb4 {[%emt 0:03:01]} 40. Re3 {[%emt 0:00:27]} Qd4 {[%emt 0:01:13]} 41. Kf2 {[%emt 0:01:16]} a3 {[%emt 0:04:27]} 42. Ne2 {[%emt 0:00:51]} Qh4+ {[%emt 0:07:02]} 43. Ng3 {[%emt 0:02:22]} a2 {[%emt 0:04:02]} 44. Re1 {[%emt 0:01:04]} Qd4+ {[%emt 0:00:28]} 0-1

[Event "FIDE Womens World Cup 2021"]
[Site "Sochi"]
[Date "2021.07.13"]
[Round "1.2"]
[White "Lujan, Carolina"]
[Black "Tokhirjonova, Gulrukhbegim"]
[Result "1/2-1/2"]
[ECO "C55"]
[WhiteElo "2346"]
[BlackElo "2320"]
[Annotator "NA"]
[PlyCount "86"]
[EventDate "2021.07.12"]
[EventType "k.o."]
[EventCountry "RUS"]
[SourceTitle "playchess.com"]
[Source "ChessBase"]
[SourceQuality "1"]
[TimeControl "40/5400+30:1800+30"]

1. e4 {[%emt 0:00:07]} e5 {[%emt 0:00:21]} 2. Nf3 {[%emt 0:00:09]} Nc6 {[%emt 0:00:20]} 3. Bc4 {[%emt 0:00:06]} Nf6 {[%emt 0:00:27]} 4. d3 {[%emt 0:00:06]} h6 {[%emt 0:00:13]} 5. c3 {[%emt 0:03:14]} d6 {[%emt 0:00:52]} 6. O-O {[%emt 0:03:49]} g5 {[%emt 0:01:38]} 7. Nbd2 {[%emt 0:18:37]} Bg7 {[%emt 0:01:17]} 8. b4 {[%emt 0:02:38]} O-O {[%emt 0:01:26]} 9. a4 {[%emt 0:01:55]} d5 {[%emt 0:11:18]} 10. Ba2 {[%emt 0:15:57]} dxe4 {[%emt 0:08:50]} 11. dxe4 {[%emt 0:06:52]} g4 {[%emt 0:03:24]} 12. Nh4 {[%emt 0:01:08]} Nxe4 {[%emt 0:02:16]} 13. Nxe4 {[%emt 0:00:23]} Qxh4 {[%emt 0:00:13]} 14. b5 {[%emt 0:03:16]} Nd8 {[%emt 0:05:07]} 15. Ba3 {[%emt 0:01:35]} Re8 {[%emt 0:02:00]} 16. f3 {[%emt 0:01:49]} Kh8 {[%emt 0:00:45]} 17. g3 {[%emt 0:04:43]} Qh5 {[%emt 0:02:37]} 18. Be7 {[%emt 0:00:27]} Be6 {[%emt 0:22:16]} 19. Nf6 {[%emt 0:09:30]} Bxf6 {[%emt 0:01:14]} 20. Bxf6+ {[%emt 0:00:03]} Kg8 {[%emt 0:00:13]} 21. Bb1 {[%emt 0:06:45]} gxf3 {[%emt 0:05:39]} 22. Qd3 {[%emt 0:02:16]} Qg6 {[%emt 0:02:50]} 23. Qxf3 {[%emt 0:00:24]} Bg4 {[%emt 0:02:05]} 24. Qe3 {[%emt 0:04:54]} e4 {[%emt 0:00:17]} 25. Ra2 {[%emt 0:05:34]} Bh3 {[%emt 0:03:17]} 26. Rff2 {[%emt 0:03:18]} Ne6 {[%emt 0:01:47]} 27. Rae2 {[%emt 0:01:07]} Ng5 {[%emt 0:01:53]} 28. Re1 {[%emt 0:01:18]} Re6 {[%emt 0:05:07]} 29. Bd4 {[%emt 0:01:27]} Rae8 {[%emt 0:02:16]} 30. Ba2 {[%emt 0:00:14]} Nf3+ {[%emt 0:01:28]} 31. Rxf3 {[%emt 0:00:13]} exf3 {[%emt 0:00:06]} 32. Bxe6 {[%emt 0:00:12]} Rxe6 {[%emt 0:00:06]} 33. Qf2 {[%emt 0:00:18]} Qd3 {[%emt 0:02:05]} 34. Be3 {[%emt 0:01:00]} Qxc3 {[%emt 0:00:11]} 35. Bd2 {[%emt 0:00:43]} Qd3 {[%emt 0:02:00]} 36. Be3 {[%emt 0:01:09]} Qe4 {[%emt 0:01:43]} 37. a5 {[%emt 0:00:36]} a6 {[%emt 0:00:47]} 38. bxa6 {[%emt 0:00:43]} bxa6 {[%emt 0:00:01]} 39. Qd2 {[%emt 0:00:27]} Rd6 {[%emt 0:02:02]} 40. Qf2 {[%emt 0:00:26]} Re6 {[%emt 0:00:10]} 41. Qd2 {[%emt 0:02:08]} Rd6 {[%emt 0:05:40]} 42. Qf2 {[%emt 0:06:18]} Re6 {[%emt 0:00:23]} 43. Qd2 {[%emt 0:00:37]} Qf4 1/2-1/2